bitfinex-derivatives/quotes_BNBF0:USTF0_20250708
["timestamp","ask_amount","ask_price","bid_price","bid_amount"]
[1751935945456,1.05597606,661.91,660.9,2.22851097]
[1751935945657,1.05597606,661.9,660.9,2.22851097]
[1751935945854,1.05597606,661.89,660.9,2.22851097]
[1751935946159,1.03335515,661.88,660.88,2.22851097]
[1751935946360,1.03335515,661.87,660.85,2.22851097]
[1751935946656,1.03335515,661.86,660.85,2.22851097]
[1751935946959,2.24962263,662.1,660.71,1.383]
[1751935946960,1.03335515,661.85,660.79,2.22851097]
[1751935947162,1.03335515,661.84,660.75,2.22851097]
[1751935947360,1.03335515,661.83,660.73,2.22851097]
[1751935947561,1.03335515,661.82,660.73,2.22851097]
[1751935947759,1.03335515,661.81,660.74,2.22851097]
[1751935947959,1.03335515,661.8,660.74,2.22851097]
[1751935948155,1.03335515,661.79,660.74,2.22851097]
[1751935948361,1.03335515,661.78,660.72,2.22851097]
[1751935948561,1.03335515,661.95,660.73,2.22851097]
[1751935948760,1.03335515,661.94,660.73,2.22851097]
[1751935948962,1.03335515,661.93,660.74,2.22851097]
[1751935949161,1.03335515,661.92,660.74,2.22851097]
[1751935949362,1.03335515,661.91,660.71,1.383]
[1751935949557,1.03335515,661.9,660.71,1.383]
[1751935949759,1.03335515,661.89,660.71,1.383]
[1751935949959,1.03335515,661.88,660.71,1.383]
[1751935950164,1.03335515,661.87,660.71,1.383]
[1751935950460,1.03335515,661.86,660.71,1.383]
[1751935950761,1.03335515,661.85,660.71,2.22851097]
[1751935950961,1.03335515,661.84,660.7,0.26320964]
[1751935951164,1.03335515,662.08,660.74,2.22851097]
[1751935951364,1.03335515,662.07,660.71,2.22851097]
[1751935951662,1.03335515,662.06,660.71,2.22851097]
[1751935951863,1.03335515,662.05,660.72,2.22851097]
[1751935952061,1.03335515,662.04,660.74,2.22851097]
[1751935952265,1.03335515,662.03,660.79,2.22851097]
[1751935952460,1.03335515,662.02,660.79,2.22851097]
[1751935952660,1.03335515,662.02,660.7,0.26320964]
[1751935952661,1.03335515,662.01,660.8,2.22851097]
[1751935952865,1.03335515,662.0,660.8,2.22851097]
[1751935953067,1.03335515,661.99,660.8,2.22851097]
[1751935953260,1.03335515,661.98,660.78,2.22851097]
[1751935953461,1.03335515,661.97,660.7,0.26320964]
[1751935953662,1.03335515,661.96,660.7,0.26320964]
[1751935953862,1.03335515,661.95,660.7,0.26320964]
[1751935954061,1.03335515,661.94,660.7,0.26320964]
[1751935954265,1.03335515,661.93,660.7,0.26320964]
[1751935954462,1.03335515,661.92,660.71,1.219]
[1751935954662,1.03335515,661.91,660.71,1.219]
[1751935954966,1.03335515,661.9,660.71,1.219]
[1751935955165,1.03335515,661.89,660.71,1.219]
[1751935955362,1.03335515,661.88,660.71,1.219]
[1751935955563,1.03335515,661.87,660.71,1.219]
[1751935955765,2.323076,661.86,660.71,1.219]
[1751935956063,0.26303557,662.15,660.71,3.44751097]
[1751935956064,1.03335515,661.85,660.71,3.44751097]
[1751935956264,0.26303557,662.15,660.71,1.219]
[1751935956265,1.03335515,661.84,660.71,1.219]
[1751935956462,1.6966302,662.03,660.71,1.219]
[1751935956463,1.03335515,661.83,660.73,2.22851097]
[1751935956662,1.03335515,661.82,660.73,2.22851097]
[1751935956960,1.03335515,661.81,660.73,2.22851097]
[1751935957163,1.03335515,661.8,660.73,2.22851097]
[1751935957367,1.03335515,661.79,660.72,2.22851097]
[1751935957567,1.03335515,661.78,660.72,2.22851097]
[1751935957763,1.03335515,661.77,660.72,2.22851097]
[1751935958066,1.03335515,661.77,660.81,2.23721268]
[1751935958268,1.6794754,662.14,660.8,2.23721268]
[1751935959368,1.94251097,662.15,660.8,2.23721268]
[1751935961264,0.26303557,662.15,660.79,2.23721268]
[1751935961968,1.94251097,662.15,660.78,2.23721268]
[1751935962568,1.6794754,662.13,660.83,2.23721268]
[1751935963471,1.6794754,662.14,660.82,2.23721268]
[1751935963670,1.6794754,662.13,660.83,2.23721268]
[1751935964270,1.6794754,662.14,660.82,2.23721268]
[1751935965971,1.6794754,662.13,660.84,2.23721268]
[1751935966168,1.6794754,662.13,660.73,3.35581903]
[1751935966169,1.6794754,662.14,660.82,2.23721268]
[1751935966472,1.6794754,662.14,660.83,2.23721268]
[1751935966771,1.6794754,662.14,660.82,2.23721268]
[1751935967272,1.6794754,662.13,660.82,2.23721268]
[1751935967671,1.94251097,662.15,660.78,2.23721268]
[1751935967972,1.94251097,662.15,660.77,2.23721268]
[1751935968175,1.94251097,662.15,660.78,2.23721268]
[1751935969676,1.94251097,662.15,660.77,2.23721268]
[1751935971680,0.26303557,662.15,660.77,2.23721268]
[1751935971875,0.26303557,662.15,660.78,1.242]
[1751935972274,1.94251097,662.15,660.78,1.242]
[1751935973482,1.94251097,662.15,660.78,3.47921268]
[1751935973777,1.94251097,662.15,660.78,1.242]
[1751935974178,1.94251097,662.15,660.78,3.47921268]
[1751935976083,1.6794754,662.14,660.79,2.23721268]
[1751935976984,1.94251097,662.15,660.78,3.47921268]
[1751935977480,1.94251097,662.15,660.78,1.242]
[1751935977683,2.70915517,662.14,660.8,2.23721268]
[1751935977886,2.70915517,662.13,660.81,2.23721268]
[1751935978081,1.02967977,662.12,660.81,2.23721268]
[1751935978286,1.02967977,662.11,660.81,2.23721268]
[1751935978481,1.02967977,662.1,660.81,2.23721268]
[1751935978685,1.02967977,662.09,660.81,2.23721268]
[1751935978880,1.02967977,662.08,660.81,2.23721268]
[1751935979082,2.3071104,662.07,660.82,2.23721268]
[1751935979281,1.02967977,662.06,660.81,2.23721268]
[1751935979586,1.02967977,662.05,660.81,2.23721268]
[1751935979887,1.02967977,662.04,660.81,2.23721268]
[1751935980082,1.02967977,662.03,660.81,2.23721268]
[1751935980283,1.02967977,662.02,660.82,2.23721268]
[1751935980586,1.02967977,662.01,660.82,2.23721268]
[1751935980788,1.02967977,662.0,660.82,2.23721268]
[1751935980981,1.02967977,661.99,660.82,2.23721268]
[1751935981184,1.02967977,661.98,660.82,2.23721268]
[1751935981385,1.02967977,661.97,660.82,2.23721268]
[1751935981591,1.02967977,661.96,660.83,2.23721268]
[1751935981786,1.02967977,661.95,660.83,2.23721268]
[1751935981986,1.02967977,661.94,660.83,2.23721268]
[1751935982189,1.02967977,661.93,660.83,2.23721268]
[1751935982385,1.02967977,661.92,660.83,2.23721268]
[1751935982588,1.02941503,661.91,660.83,2.23721268]
[1751935982792,1.02941503,661.9,660.83,2.23721268]
[1751935983087,1.02941503,661.89,660.82,2.23721268]
[1751935983292,1.02941503,661.88,660.83,2.23721268]
[1751935983587,1.02941503,661.87,660.83,2.23721268]
[1751935983789,1.02941503,661.86,660.83,2.23721268]
[1751935983991,1.02941503,662.1,660.83,2.23721268]
[1751935984289,0.26303557,662.15,660.78,1.242]
[1751935984290,1.02941503,662.09,660.78,1.242]
[1751935984495,1.6794754,662.06,660.78,1.242]
[1751935984694,1.6794754,662.02,660.78,1.242]
[1751935984894,2.70889043,662.01,660.78,1.242]
[1751935985191,1.02941503,662.0,660.78,1.242]
[1751935985394,1.02941503,661.99,660.78,1.242]
[1751935985594,1.02941503,661.98,660.78,1.242]
[1751935985793,1.02941503,661.97,660.78,1.242]
[1751935986093,1.02941503,661.96,660.78,1.242]
[1751935986290,1.02941503,661.95,660.78,1.242]
[1751935986589,1.02941503,661.94,660.78,1.242]
[1751935986795,1.02941503,661.93,660.78,1.242]
[1751935986991,1.02941503,661.92,660.78,1.242]
[1751935987196,1.02941503,661.91,660.78,1.242]
[1751935987396,1.02941503,661.9,660.78,1.242]
[1751935987694,1.02941503,661.89,660.78,1.242]
[1751935987891,1.02941503,661.88,660.78,1.242]
[1751935988095,1.6794754,661.98,660.78,1.242]
[1751935988296,2.7101668,661.97,660.78,1.242]
[1751935988497,1.0306914,661.96,660.78,1.242]
[1751935988696,1.0306914,661.95,660.78,1.242]
[1751935988994,1.0306914,661.94,660.78,1.242]
[1751935989193,1.6794754,661.97,660.78,1.242]
[1751935989194,1.0306914,661.93,660.78,1.242]
[1751935989394,1.0306914,661.92,660.78,1.242]
[1751935989599,1.0306914,661.91,660.78,1.242]
[1751935989893,1.0306914,661.9,660.78,1.242]
[1751935990099,1.0306914,661.89,660.78,1.242]
[1751935990297,1.0306914,661.88,660.78,3.47921268]
[1751935990495,1.0306914,661.99,660.79,2.23721268]
[1751935990700,1.0306914,661.98,660.79,2.23721268]
[1751935990902,1.0306914,661.97,660.88,2.23721268]
[1751935991100,1.0306914,661.96,660.8,2.23721268]
[1751935991301,1.0306914,661.95,660.83,2.23721268]
[1751935991498,1.0306914,661.94,660.83,2.23721268]
[1751935991703,1.0306914,661.93,660.78,1.242]
[1751935991903,1.0306914,661.92,660.84,2.23721268]
[1751935992103,1.0306914,661.91,660.87,2.23721268]
[1751935992300,1.0306914,662.1,660.9,2.23721268]
[1751935992504,1.0306914,662.09,660.9,2.23721268]
[1751935992701,1.0306914,662.08,660.9,2.23721268]
[1751935992900,1.0306914,662.07,660.91,2.23721268]
[1751935993204,1.0306914,662.06,660.93,2.23721268]
[1751935993400,1.0306914,662.06,660.78,1.242]
[1751935993401,1.0306914,662.05,660.96,2.23721268]
[1751935993604,1.0306914,662.04,660.96,2.23721268]
[1751935993904,1.0306914,662.03,661.02,2.23721268]
[1751935994102,1.0306914,662.02,661.06,2.23721268]
[1751935994302,1.6794754,662.0,661.05,2.23721268]
[1751935994504,1.0306914,661.99,661.05,2.23721268]
[1751935994706,1.0306914,661.98,661.04,2.23721268]
[1751935994902,1.0306914,661.97,661.04,2.23721268]
[1751935995099,1.0306914,661.96,661.04,2.23721268]
[1751935995403,1.6794754,661.9,661.0,2.23721268]
[1751935995597,1.0306914,661.89,661.0,2.23721268]
[1751935995799,1.0306914,661.88,661.01,2.23721268]
[1751935996000,1.0306914,661.87,661.01,2.23721268]
[1751935996199,2.7101668,661.89,661.06,2.23721268]
[1751935996501,1.0306914,661.88,661.06,2.23721268]
[1751935996703,1.03592674,661.88,661.06,2.23721268]
[1751935997303,2.71540214,661.87,661.12,2.23721268]
[1751935997505,1.6794754,661.87,661.12,2.23721268]
[1751935997699,1.6794754,661.87,661.13,2.23721268]
[1751935997902,1.6794754,661.87,661.14,2.23721268]
[1751935998302,1.6794754,661.86,661.15,2.23721268]
[1751935998505,1.6794754,661.86,661.13,2.23721268]
[1751935998704,1.6794754,661.9,661.17,2.23721268]
[1751935999102,1.6794754,661.87,661.1,2.23721268]
[1751935999502,1.6794754,661.86,661.12,2.23721268]
[1751936000403,1.6794754,661.87,661.13,1.772]
[1751936000607,2.95604021,661.87,661.13,1.772]
[1751936000804,1.6794754,661.87,661.13,1.772]
[1751936001301,1.6794754,661.88,661.13,1.772]
[1751936002609,1.6794754,661.95,661.16,2.23721268]
[1751936003009,1.6794754,661.95,661.17,2.23721268]
[1751936003211,2.71540214,661.95,661.17,2.23721268]
[1751936003405,1.6794754,661.95,661.17,2.23721268]
[1751936004006,1.6794754,661.92,661.13,4.00921268]
[1751936007109,1.6794754,661.92,661.14,2.23721268]
[1751936007313,1.6794754,661.91,661.14,2.23721268]
[1751936008111,1.6794754,661.95,661.17,2.23721268]
[1751936008311,1.6794754,661.94,661.18,2.23721268]
[1751936008716,1.03592674,661.93,661.18,2.23721268]
[1751936009017,1.03592674,661.92,661.21,2.23721268]
[1751936009317,1.03592674,661.91,661.21,2.23721268]
[1751936009516,1.03592674,661.9,661.21,2.23721268]
[1751936009718,1.03592674,661.89,661.21,2.23721268]
[1751936009917,1.03592674,661.88,661.21,2.23721268]
[1751936010213,1.03592674,661.92,661.21,2.23721268]
[1751936010414,1.03592674,661.91,661.21,2.23721268]
[1751936010716,1.03592674,661.92,661.21,2.23721268]
[1751936010916,1.03592674,661.91,661.21,2.23721268]
[1751936011113,1.03592674,661.9,661.21,2.23721268]
[1751936011313,2.71540214,661.92,661.25,2.23721268]
[1751936011615,1.03592674,661.91,661.25,2.23721268]
[1751936011917,1.03592674,661.9,661.25,2.23721268]
[1751936012213,1.03592674,661.91,661.25,2.23721268]
[1751936012517,1.6794754,661.92,661.25,2.23721268]
[1751936013115,1.6794754,661.92,661.26,2.23721268]
[1751936013420,1.6794754,661.92,661.13,1.772]
[1751936013421,1.6794754,661.92,661.27,2.23721268]
[1751936014919,1.6794754,661.92,661.26,2.23721268]
[1751936015318,1.6794754,661.92,661.27,2.23721268]
[1751936016617,1.6794754,661.92,661.26,2.23721268]
[1751936019716,1.6794754,661.92,661.27,2.23721268]
[1751936020520,1.6794754,661.91,661.28,2.23721268]
[1751936021622,0.47113286,662.0,661.01,2.23721268]
[1751936021820,0.47113286,662.01,661.01,2.23721268]
[1751936022024,1.6794754,662.02,661.0,2.23721268]
[1751936022224,1.6794754,662.02,661.01,2.23721268]
[1751936023819,1.03338733,662.01,661.02,1.402]
[1751936024021,1.6794754,662.02,661.02,1.402]
[1751936024222,1.6794754,662.01,661.02,1.402]
[1751936024724,1.6794754,661.99,661.02,1.402]
[1751936026225,1.6794754,662.01,661.02,1.402]
[1751936026525,1.03338733,662.0,661.02,1.402]
[1751936026725,1.03338733,661.99,661.02,1.402]
[1751936026927,1.03338733,662.0,661.02,1.402]
[1751936027224,1.03338733,661.99,661.02,1.402]
[1751936027425,1.03338733,662.0,661.02,1.402]
[1751936027624,1.03338733,661.99,661.02,1.402]
[1751936027827,1.03338733,662.0,661.02,1.402]
[1751936028028,1.03338733,661.99,661.02,1.402]
[1751936028224,1.03338733,662.0,661.02,1.402]
[1751936028528,1.03338733,661.99,661.02,1.402]
[1751936028723,1.03338733,662.0,661.02,1.402]
[1751936028926,1.03338733,661.99,661.02,1.402]
[1751936029123,1.03338733,662.0,661.02,1.402]
[1751936029328,1.03338733,661.99,661.02,1.402]
[1751936029524,2.71286273,661.98,661.02,1.402]
[1751936029829,1.6794754,661.98,661.02,1.402]
[1751936031331,1.6794754,661.91,661.14,2.23721268]
[1751936032633,2.71286273,661.91,661.14,2.23721268]
[1751936032932,1.6794754,661.91,661.14,2.23721268]
[1751936033332,4.46540883,661.91,661.14,2.23721268]
[1751936033532,2.78593343,661.9,661.15,2.23721268]
[1751936033829,1.50496751,661.9,661.15,2.23721268]
[1751936034029,1.03388871,661.9,661.15,2.23721268]
[1751936034229,2.71336411,661.9,661.15,2.23721268]
[1751936034533,1.6794754,661.9,661.15,2.23721268]
[1751936034828,1.6794754,661.9,661.16,2.23721268]
[1751936035329,1.03394858,661.89,661.16,2.23721268]
[1751936037333,1.03394858,661.88,661.16,2.23721268]
[1751936038532,1.03394858,661.87,661.19,2.23721268]
[1751936039237,1.03394858,661.86,661.19,2.23721268]
[1751936039433,1.03394858,661.87,661.19,2.23721268]
[1751936039736,1.03394858,661.86,661.19,2.23721268]
[1751936039936,1.03394858,661.87,661.19,2.23721268]
[1751936040136,1.03394858,661.86,661.19,2.23721268]
[1751936040336,1.03394858,661.87,661.19,2.23721268]
[1751936040533,1.03394858,661.86,661.19,2.23721268]
[1751936040736,1.03394858,661.87,661.19,2.23721268]
[1751936040936,1.6794754,661.88,661.19,2.23721268]
[1751936040937,1.03394858,661.86,661.19,2.23721268]
[1751936041133,1.6794754,661.84,661.29,2.23721268]
[1751936041338,1.03394858,661.83,661.29,2.23721268]
[1751936041536,1.03394858,661.82,661.29,2.23721268]
[1751936041838,1.03394858,661.83,661.29,2.23721268]
[1751936042037,1.03394858,661.82,661.29,2.23721268]
[1751936042235,1.03394858,661.81,661.29,2.23721268]
[1751936042434,1.03394858,661.82,661.29,2.23721268]
[1751936042639,1.03394858,661.81,661.29,2.23721268]
[1751936042835,1.03394858,661.83,661.29,2.23721268]
[1751936043034,1.03394858,661.82,661.29,2.23721268]
[1751936043337,1.03394858,661.81,661.29,2.23721268]
[1751936043639,1.03394858,661.8,661.29,2.23721268]
[1751936043839,1.03394858,661.82,661.29,2.23721268]
[1751936044033,1.03394858,661.81,661.29,2.23721268]
[1751936044237,1.03394858,661.8,661.29,2.23721268]
[1751936044438,1.03394858,661.82,661.29,2.23721268]
[1751936044635,1.03394858,661.81,661.29,2.23721268]
[1751936044839,1.03394858,661.8,661.29,2.23721268]
[1751936045038,1.03394858,661.82,661.29,2.23721268]
[1751936045242,1.03394858,661.81,661.29,2.23721268]
[1751936045442,1.03540274,661.8,661.29,2.23721268]
[1751936045740,1.03540274,661.79,661.29,2.23721268]
[1751936045939,1.03540274,661.82,661.29,2.23721268]
[1751936046137,1.03540274,661.81,661.29,2.23721268]
[1751936046335,1.03540274,661.8,661.3,2.23721268]
[1751936046640,1.03540274,661.79,661.3,2.23721268]
[1751936046941,1.03540274,661.81,661.3,2.23721268]
[1751936047142,1.03540274,661.8,661.3,2.23721268]
[1751936047343,1.03540274,661.79,661.31,2.23721268]
[1751936047644,1.03540274,661.81,661.31,2.23721268]
[1751936047846,1.03540274,661.8,661.31,2.23721268]
[1751936048145,1.03540274,661.79,661.31,2.23721268]
[1751936048441,1.03540274,661.81,661.31,2.23721268]
[1751936048646,1.03540274,661.8,661.31,2.23721268]
[1751936048841,1.03540274,661.79,661.31,2.23721268]
[1751936049041,1.03540274,661.81,661.31,2.23721268]
[1751936049243,1.03540274,661.8,661.31,2.23721268]
[1751936049446,1.03540274,661.8,661.2,3.35581903]
[1751936049447,1.6794754,661.89,661.14,2.23721268]
[1751936049641,1.03540274,661.88,661.14,2.23721268]
[1751936049843,1.03540274,661.87,661.14,2.23721268]
[1751936050042,1.03540274,661.86,661.14,2.23721268]
[1751936050245,1.03540274,661.85,661.14,2.23721268]
[1751936050447,1.03540274,661.88,661.14,2.23721268]
[1751936050749,1.03540274,661.87,661.14,2.23721268]
[1751936050948,1.03540274,661.86,661.14,2.23721268]
[1751936051145,1.03540274,661.85,661.14,2.23721268]
[1751936051345,1.03540274,661.84,661.14,2.23721268]
[1751936051545,1.03540274,661.88,661.14,2.23721268]
[1751936051847,1.03540274,661.87,661.14,2.23721268]
[1751936052047,1.03540274,661.86,661.14,2.23721268]
[1751936052248,1.03540274,661.85,661.14,2.23721268]
[1751936052444,1.03540274,661.84,661.14,2.23721268]
[1751936052648,1.03540274,661.83,661.15,2.23721268]
[1751936052948,1.03540274,661.87,661.15,2.23721268]
[1751936053243,1.03540274,661.86,661.15,2.23721268]
[1751936053548,1.03540274,661.85,661.15,2.23721268]
[1751936053743,1.03540274,661.84,661.15,2.23721268]
[1751936053943,1.03540274,661.83,661.15,2.23721268]
[1751936054144,1.03540274,661.87,661.15,2.23721268]
[1751936054445,1.03540274,661.86,661.15,2.23721268]
[1751936054646,1.03540274,661.85,661.15,2.23721268]
[1751936054846,1.03540274,661.84,661.15,2.23721268]
[1751936055050,1.03540274,661.83,661.15,2.23721268]
[1751936055248,1.03540274,661.87,661.15,2.23721268]
[1751936055445,1.03540274,661.86,661.16,1.982]
[1751936055646,1.03540274,661.85,661.16,1.982]
[1751936055847,1.03540274,661.84,661.16,1.982]
[1751936056046,1.03540274,661.83,661.16,1.982]
[1751936056347,1.03540274,661.82,661.16,1.982]
[1751936056552,1.03540274,661.86,661.16,1.982]
[1751936056751,1.03540274,661.85,661.16,1.982]
[1751936057048,1.03540274,661.86,661.16,1.982]
[1751936057353,1.03593695,661.85,661.16,1.982]
[1751936057547,1.03593695,661.89,661.16,1.982]
[1751936057750,1.03593695,661.88,661.16,1.982]
[1751936058050,1.03593695,661.87,661.16,1.982]
[1751936058249,1.03593695,661.86,661.16,1.982]
[1751936058454,1.03593695,661.85,661.16,1.982]
[1751936058650,1.03593695,661.89,661.16,1.982]
[1751936058949,1.03593695,661.88,661.16,1.982]
[1751936059151,1.03593695,661.87,661.16,1.982]
[1751936059449,1.03593695,661.86,661.16,1.982]
[1751936059648,1.03593695,661.85,661.16,1.982]
[1751936059847,1.03593695,661.84,661.16,1.982]
[1751936060048,1.03593695,661.83,661.16,1.982]
[1751936060349,1.03593695,661.87,661.16,1.982]
[1751936060548,1.03593695,661.86,661.16,1.982]
[1751936060848,1.03593695,661.85,661.16,1.982]
[1751936061048,1.03593695,661.84,661.16,1.982]
[1751936061251,1.03593695,661.83,661.16,1.982]
[1751936061453,1.03593695,661.87,661.16,1.982]
[1751936061648,1.03593695,661.86,661.16,1.982]
[1751936061853,1.03593695,661.85,661.16,1.982]
[1751936062054,1.03593695,661.84,661.16,1.982]
[1751936062254,1.03593695,661.83,661.16,1.982]
[1751936062454,1.03593695,661.86,661.16,1.982]
[1751936062655,1.03593695,661.85,661.16,1.982]
[1751936062850,1.03593695,661.84,661.16,1.982]
[1751936063050,1.03593695,661.83,661.16,1.982]
[1751936063352,1.03593695,661.86,661.16,1.982]
[1751936063553,1.03593695,661.85,661.16,1.982]
[1751936063754,1.03593695,661.84,661.16,1.982]
[1751936063955,1.03593695,661.83,661.16,1.982]
[1751936064155,1.03593695,661.86,661.16,1.982]
[1751936064352,1.03593695,661.85,661.16,1.982]
[1751936064653,1.03593695,661.84,661.16,1.982]
[1751936064851,1.03593695,661.83,661.17,2.23721268]
[1751936065156,1.03593695,661.82,661.17,2.23721268]
[1751936065355,1.03593695,661.85,661.17,2.23721268]
[1751936065653,1.03593695,661.84,661.17,2.23721268]
[1751936065951,1.03593695,661.83,661.17,2.23721268]
[1751936066152,1.03593695,661.82,661.17,2.23721268]
[1751936066450,1.03593695,661.86,661.17,2.23721268]
[1751936066652,1.03593695,661.85,661.17,2.23721268]
[1751936066852,1.03593695,661.84,661.17,2.23721268]
[1751936067052,3.35969701,662.21,661.16,1.982]
[1751936067053,2.71541235,661.83,661.29,2.23721268]
[1751936067256,1.03593695,661.82,661.29,2.23721268]
[1751936067556,1.03593695,661.81,661.29,2.23721268]
[1751936067751,1.03593695,661.8,661.29,2.23721268]
[1751936067950,1.03593695,661.79,661.29,2.23721268]
[1751936068153,1.03593695,661.78,661.27,2.23721268]
[1751936068355,1.03593695,661.82,661.28,2.23721268]
[1751936068553,1.03593695,661.81,661.28,2.23721268]
[1751936068755,1.03593695,661.8,661.28,2.23721268]
[1751936068953,1.03593695,661.79,661.28,2.23721268]
[1751936069156,1.03593695,661.78,661.28,2.23721268]
[1751936069354,1.03593695,661.77,661.28,2.23721268]
[1751936069554,1.03593695,661.83,661.28,2.23721268]
[1751936069755,1.03593695,661.82,661.28,2.23721268]
[1751936069958,1.03593695,661.81,661.28,2.23721268]
[1751936070159,1.03593695,661.8,661.29,2.23721268]
[1751936070358,1.6794754,661.84,661.29,2.23721268]
[1751936070359,1.03593695,661.79,661.29,2.23721268]
[1751936070560,1.03593695,661.78,661.29,2.23721268]
[1751936070859,1.03593695,661.77,661.29,2.23721268]
[1751936071055,1.03593695,661.83,661.29,2.23721268]
[1751936071259,1.03593695,661.82,661.3,2.23721268]
[1751936071460,1.03593695,661.81,661.3,2.23721268]
[1751936071660,1.03593695,661.8,661.3,2.23721268]
[1751936071856,1.03593695,661.79,661.33,2.23721268]
[1751936072056,1.03593695,661.78,661.33,2.23721268]
[1751936072261,1.03593695,661.77,661.33,2.23721268]
[1751936072557,1.03593695,661.76,661.32,2.23721268]
[1751936072757,1.03593695,661.82,661.32,2.23721268]
[1751936072957,1.03593695,661.81,661.32,2.23721268]
[1751936073159,1.03593695,661.8,661.32,2.23721268]
[1751936073355,1.03593695,661.79,661.32,2.23721268]
[1751936073557,1.03593695,661.78,661.33,2.23721268]
[1751936073759,1.03593695,661.77,661.33,2.23721268]
[1751936074059,1.03593695,661.76,661.33,2.23721268]
[1751936074260,2.71541235,661.82,661.32,2.23721268]
[1751936074460,1.03593695,661.81,661.32,2.23721268]
[1751936074658,1.03593695,661.8,661.32,2.23721268]
[1751936074861,1.03593695,661.79,661.32,2.23721268]
[1751936075058,1.03593695,661.78,661.32,2.23721268]
[1751936075259,1.03593695,661.77,661.33,2.23721268]
[1751936075458,1.03593695,661.76,661.33,2.23721268]
[1751936075661,1.03593695,661.81,661.33,2.23721268]
[1751936075958,1.6794754,661.84,661.27,2.23721268]
[1751936076159,2.71541235,661.84,661.27,2.23721268]
[1751936076462,1.6794754,661.84,661.27,2.23721268]
[1751936076666,1.6794754,661.84,661.16,1.982]
[1751936076667,1.6794754,661.91,661.34,2.23721268]
[1751936076962,1.03593695,661.9,661.34,2.23721268]
[1751936077159,1.03593695,661.89,661.34,2.23721268]
[1751936077459,1.03593695,661.88,661.35,2.23721268]
[1751936077663,1.03593695,661.87,661.35,2.23721268]
[1751936077859,1.03593695,661.86,661.35,2.23721268]
[1751936078061,1.03593695,661.85,661.35,2.23721268]
[1751936078259,2.3188112,661.9,661.34,2.23721268]
[1751936078462,1.03593695,661.89,661.34,2.23721268]
[1751936078762,1.03593695,661.88,661.34,2.23721268]
[1751936078958,1.03593695,661.87,661.34,2.23721268]
[1751936079259,1.03593695,661.9,661.34,2.23721268]
[1751936079557,1.6794754,661.86,661.28,2.23721268]
[1751936079761,1.03593695,661.9,661.36,2.23721268]
[1751936079958,1.03593695,661.93,661.36,2.23721268]
[1751936080162,1.03593695,661.92,661.36,2.23721268]
[1751936080360,1.03593695,661.91,661.36,2.23721268]
[1751936080664,2.3188112,661.94,661.36,2.23721268]
[1751936080964,1.03593695,661.93,661.36,2.23721268]
[1751936081160,1.03593695,661.92,661.36,2.23721268]
[1751936081368,1.03593695,661.94,661.36,2.23721268]
[1751936081560,1.03593695,661.93,661.36,2.23721268]
[1751936081865,1.03593695,661.92,661.35,2.23721268]
[1751936082061,1.03593695,661.91,661.35,2.23721268]
[1751936082261,1.03593695,661.94,661.34,2.23721268]
[1751936082561,1.03593695,661.93,661.34,2.23721268]
[1751936082760,1.03593695,661.92,661.35,2.23721268]
[1751936083060,1.03593695,661.94,661.35,2.23721268]
[1751936083263,1.03593695,661.93,661.33,2.23721268]
[1751936083462,1.03593695,661.92,661.33,2.23721268]
[1751936083664,1.03593695,661.95,661.33,2.23721268]
[1751936083863,1.03593695,661.94,661.33,2.23721268]
[1751936084061,1.03593695,661.93,661.33,2.23721268]
[1751936084263,1.03593695,661.92,661.33,2.23721268]
[1751936084466,1.03593695,661.94,661.33,2.23721268]
[1751936084667,2.71541235,661.93,661.31,2.23721268]
[1751936084864,2.71541235,661.93,661.16,1.982]
[1751936084865,2.71541235,661.92,661.34,2.23721268]
[1751936085064,1.03593695,661.91,661.33,2.23721268]
[1751936085363,1.6794754,661.94,661.3,2.23721268]
[1751936085568,1.03593695,661.93,661.3,2.23721268]
[1751936086263,1.03593695,661.93,661.29,2.23721268]
[1751936086564,1.03504186,661.93,661.32,2.23721268]
[1751936086865,1.03504186,661.95,661.32,2.23721268]
[1751936087068,1.03504186,661.94,661.32,2.23721268]
[1751936087365,1.03504186,661.93,661.32,2.23721268]
[1751936087666,1.03504186,661.96,661.32,2.23721268]
[1751936087867,1.03504186,661.95,661.32,2.23721268]
[1751936088067,1.03504186,661.94,661.32,2.23721268]
[1751936088268,1.03504186,661.96,661.32,2.23721268]
[1751936088470,1.03504186,661.95,661.32,2.23721268]
[1751936088671,1.03504186,661.94,661.32,2.23721268]
[1751936088968,1.03504186,661.96,661.32,2.23721268]
[1751936089169,1.03504186,661.95,661.32,2.23721268]
[1751936089469,1.03504186,661.94,661.31,2.23721268]
[1751936089768,1.03504186,661.96,661.31,2.23721268]
[1751936089966,1.03504186,661.95,661.31,2.23721268]
[1751936090268,1.03504186,661.94,661.31,2.23721268]
[1751936090468,1.03504186,661.95,661.31,2.23721268]
[1751936090665,1.03504186,661.94,661.32,1.603]